{"text_format":"3","workbook":"xlsx","n_sheets":1,"sheets":["Реєстрація видачі книг"],"not_rendered":{"defined_names":4},"read":"whole","date_system":"1900"}

{"sheet":"Реєстрація видачі книг","index":0,"n_rows":9,"n_cols":8,"rows_kept":9,"merged":[[0,1,0,4],[0,5,0,6]]}
[null,"Аркуш реєстрації книг",{"$nulls":3},"ДНІВ ДО ПОВЕРНЕННЯ ",null,10]
["Прострочено","УЧЕНЬ","АДРЕСА ЕЛ. ПОШТИ","НОМЕР ТЕЛЕФОНУ","НАЗВА КНИГИ","ДАТА ВИДАЧІ","ДАТА ПОВЕРНЕННЯ","ДНІВ"]
[{"$f":"IFERROR(((Книги[[#This Row],[ДАТА ВИДАЧІ]]+ДнівЗалишилося)<TODAY())*(LEN(Книги[[#This Row],[ДАТА ПОВЕРНЕННЯ]])=0)*(LEN(Книги[[#This Row],[ДАТА ВИДАЧІ]])>0),0)","v":0},"Яна Петренко","perevirka@example.com","555-01-00","Будиночок у прерії",{"$f":"DATE(YEAR(TODAY()),1,14)","v":"2018-01-14"},{"$f":"DATE(YEAR(TODAY()),1,21)","v":"2018-01-21"},{"$f":"IFERROR(IF(Книги[[#This Row],[ДАТА ПОВЕРНЕННЯ]]=\"\",IF(Книги[[#This Row],[ДАТА ВИДАЧІ]]<>\"\", TODAY()-Книги[[#This Row],[ДАТА ВИДАЧІ]],\"\"),Книги[[#This Row],[ДАТА ПОВЕРНЕННЯ]]-Книги[[#This Row],[ДАТА ВИДАЧІ]]), \"\")","v":7}]
[{"$f":"IFERROR(((Книги[[#This Row],[ДАТА ВИДАЧІ]]+ДнівЗалишилося)<TODAY())*(LEN(Книги[[#This Row],[ДАТА ПОВЕРНЕННЯ]])=0)*(LEN(Книги[[#This Row],[ДАТА ВИДАЧІ]])>0),0)","v":0},"Артем Мельник","perevirka@example.com","555-01-01","Тіні забутих предків",{"$f":"DATE(YEAR(TODAY()),2,15)","v":"2018-02-15"},{"$f":"DATE(YEAR(TODAY()),2,18)","v":"2018-02-18"},{"$f":"IFERROR(IF(Книги[[#This Row],[ДАТА ПОВЕРНЕННЯ]]=\"\",IF(Книги[[#This Row],[ДАТА ВИДАЧІ]]<>\"\", TODAY()-Книги[[#This Row],[ДАТА ВИДАЧІ]],\"\"),Книги[[#This Row],[ДАТА ПОВЕРНЕННЯ]]-Книги[[#This Row],[ДАТА ВИДАЧІ]]), \"\")","v":3}]
[{"$f":"IFERROR(((Книги[[#This Row],[ДАТА ВИДАЧІ]]+ДнівЗалишилося)<TODAY())*(LEN(Книги[[#This Row],[ДАТА ПОВЕРНЕННЯ]])=0)*(LEN(Книги[[#This Row],[ДАТА ВИДАЧІ]])>0),0)","v":0},"Богдана Вихор","perevirka@example.com","555-01-02","Кайдашева сім’я",{"$f":"DATE(YEAR(TODAY()),2,17)","v":"2018-02-17"},{"$f":"DATE(YEAR(TODAY()),2,22)","v":"2018-02-22"},{"$f":"IFERROR(IF(Книги[[#This Row],[ДАТА ПОВЕРНЕННЯ]]=\"\",IF(Книги[[#This Row],[ДАТА ВИДАЧІ]]<>\"\", TODAY()-Книги[[#This Row],[ДАТА ВИДАЧІ]],\"\"),Книги[[#This Row],[ДАТА ПОВЕРНЕННЯ]]-Книги[[#This Row],[ДАТА ВИДАЧІ]]), \"\")","v":5}]
[{"$f":"IFERROR(((Книги[[#This Row],[ДАТА ВИДАЧІ]]+ДнівЗалишилося)<TODAY())*(LEN(Книги[[#This Row],[ДАТА ПОВЕРНЕННЯ]])=0)*(LEN(Книги[[#This Row],[ДАТА ВИДАЧІ]])>0),0)","v":0},"Андрій Панасенко","perevirka@example.com","555-01-03","Пригоди Тома Соєра",{"$f":"DATE(YEAR(TODAY()),2,17)","v":"2018-02-17"},{"$f":"DATE(YEAR(TODAY()),2,25)","v":"2018-02-25"},{"$f":"IFERROR(IF(Книги[[#This Row],[ДАТА ПОВЕРНЕННЯ]]=\"\",IF(Книги[[#This Row],[ДАТА ВИДАЧІ]]<>\"\", TODAY()-Книги[[#This Row],[ДАТА ВИДАЧІ]],\"\"),Книги[[#This Row],[ДАТА ПОВЕРНЕННЯ]]-Книги[[#This Row],[ДАТА ВИДАЧІ]]), \"\")","v":8}]
[{"$f":"IFERROR(((Книги[[#This Row],[ДАТА ВИДАЧІ]]+ДнівЗалишилося)<TODAY())*(LEN(Книги[[#This Row],[ДАТА ПОВЕРНЕННЯ]])=0)*(LEN(Книги[[#This Row],[ДАТА ВИДАЧІ]])>0),0)","v":0},"Дарія Кочур","perevirka@example.com","555-01-04","Енеїда",{"$f":"DATE(YEAR(TODAY()),2,18)","v":"2018-02-18"},{"$f":"DATE(YEAR(TODAY()),2,28)","v":"2018-02-28"},{"$f":"IFERROR(IF(Книги[[#This Row],[ДАТА ПОВЕРНЕННЯ]]=\"\",IF(Книги[[#This Row],[ДАТА ВИДАЧІ]]<>\"\", TODAY()-Книги[[#This Row],[ДАТА ВИДАЧІ]],\"\"),Книги[[#This Row],[ДАТА ПОВЕРНЕННЯ]]-Книги[[#This Row],[ДАТА ВИДАЧІ]]), \"\")","v":10}]
[{"$f":"IFERROR(((Книги[[#This Row],[ДАТА ВИДАЧІ]]+ДнівЗалишилося)<TODAY())*(LEN(Книги[[#This Row],[ДАТА ПОВЕРНЕННЯ]])=0)*(LEN(Книги[[#This Row],[ДАТА ВИДАЧІ]])>0),0)","v":1},"Любов Іванчук","perevirka@example.com","555-01-05","Останній із могікан",{"$f":"DATE(YEAR(TODAY()),1,23)","v":"2018-01-23"},null,{"$f":"IFERROR(IF(Книги[[#This Row],[ДАТА ПОВЕРНЕННЯ]]=\"\",IF(Книги[[#This Row],[ДАТА ВИДАЧІ]]<>\"\", TODAY()-Книги[[#This Row],[ДАТА ВИДАЧІ]],\"\"),Книги[[#This Row],[ДАТА ПОВЕРНЕННЯ]]-Книги[[#This Row],[ДАТА ВИДАЧІ]]), \"\")","v":164}]
[{"$f":"IFERROR(((Книги[[#This Row],[ДАТА ВИДАЧІ]]+ДнівЗалишилося)<TODAY())*(LEN(Книги[[#This Row],[ДАТА ПОВЕРНЕННЯ]])=0)*(LEN(Книги[[#This Row],[ДАТА ВИДАЧІ]])>0),0)","v":0},"Ольга Тарасюк","perevirka@example.com","555-01-06","Земля",{"$f":"TODAY()","v":"2018-07-06"},null,{"$f":"IFERROR(IF(Книги[[#This Row],[ДАТА ПОВЕРНЕННЯ]]=\"\",IF(Книги[[#This Row],[ДАТА ВИДАЧІ]]<>\"\", TODAY()-Книги[[#This Row],[ДАТА ВИДАЧІ]],\"\"),Книги[[#This Row],[ДАТА ПОВЕРНЕННЯ]]-Книги[[#This Row],[ДАТА ВИДАЧІ]]), \"\")","v":0}]